bitfinex-derivatives/quotes_ETHF0:USTF0_20210705
["timestamp","ask_amount","ask_price","bid_price","bid_amount"]
[1625483104677,51.0098,2297.8,2297.1,17.32800677]
[1625483104770,2.5381,2297.8,2297.1,17.32800677]
[1625483104875,2.20527,2297.6,2297.5,2.20527]
[1625483105271,2.20527,2297.6,2297.5,50.65717]
[1625483107175,2.20527,2297.6,2297.5,2.20527]
[1625483112538,59.8396,2299.0,2297.5,2.20527]
[1625483112638,2.56764625,2299.1,2297.5,2.20527]
[1625483112837,2.56764625,2299.1,2297.5,2.33425417]
[1625483112938,2.20527,2298.5,2298.4,5.73467]
[1625483114143,2.20527,2298.5,2298.4,3.5294]
[1625483114943,4.41054,2298.5,2298.4,3.5294]
[1625483117454,3.91054,2298.5,2298.4,3.5294]
[1625483118204,3.91054,2298.5,2297.8,2.20527]
[1625483119010,2.20527,2297.9,2297.8,2.20527]
[1625483122021,1.0,2298.9,2297.8,2.20527]
[1625483122124,2.56795277,2299.4,2297.8,5.66567]
[1625483122478,7.32676236,2299.6,2297.9,2.66985857]
[1625483122723,7.32676236,2299.6,2297.9,18.47695857]
[1625483122826,4.759,2299.6,2298.0,2.54005068]
[1625483122925,2.20527,2299.3,2299.2,2.20527]
[1625483123586,4.759,2299.6,2299.1,2.5464]
[1625483124223,4.759,2299.6,2298.6,2.7607]
[1625483124977,2.20527,2299.3,2299.2,2.20527]
[1625483126230,4.759,2299.6,2299.2,2.20527]
[1625483126332,2.56781687,2299.8,2299.2,5.15987]
[1625483126433,2.56728982,2299.9,2299.2,5.15987]
[1625483126728,2.56728982,2299.9,2299.7,50.2763]
[1625483127030,2.56728982,2299.9,2299.8,4.41054]
[1625483127130,0.8596,2300.1,2299.8,4.41054]
[1625483127230,2.20527,2300.4,2299.8,4.41054]
[1625483128984,2.20527,2300.4,2300.3,2.20527]
[1625483131143,53.12697,2300.4,2300.3,2.20527]
[1625483131440,2.20527,2300.4,2300.3,2.20527]
[1625483131642,2.20527,2300.6,2300.3,2.20527]
[1625483131944,4.759,2300.9,2300.3,2.20527]
[1625483132143,4.759,2300.9,2300.5,39.8333]
[1625483132343,2.5615792,2301.8,2300.5,43.2664]
[1625483132747,2.56138622,2302.0,2300.5,43.2664]
[1625483133046,2.20527,2301.7,2301.6,2.20527]
[1625483133150,2.20527,2301.7,2301.6,4.77747]
[1625483134254,2.20527,2301.7,2301.6,2.20527]
[1625483134402,5.30747,2301.7,2301.6,2.20527]
[1625483135053,7.51274,2301.7,2301.6,2.20527]
[1625483135152,5.30747,2301.7,2301.6,2.20527]
[1625483141130,7.51274,2301.7,2301.6,2.20527]
[1625483141880,5.30747,2301.7,2301.6,2.20527]
[1625483153274,52.69207,2301.7,2301.6,2.20527]
[1625483153824,52.69207,2301.7,2301.6,7e-05]
[1625483153924,52.69207,2301.7,2300.5,1.0]
[1625483154029,52.69207,2301.7,2299.9,14.1959]
[1625483154126,57.69207,2301.7,2299.9,12.8909]
[1625483154475,52.69207,2301.7,2299.9,12.8909]
[1625483155227,2.20527,2300.7,2300.6,2.20527]
[1625483155328,5.51817,2300.7,2300.6,2.20527]
[1625483160447,3.3129,2300.7,2300.6,2.20527]
[1625483160544,2.3265,2301.2,2300.6,2.20527]
[1625483161295,2.20527,2300.8,2300.6,2.20527]
[1625483162898,2.20527,2300.8,2300.4,2.20527]
[1625483162899,2.20527,2300.8,2300.0,45.5728]
[1625483162999,2.20527,2300.8,2299.9,12.8909]
[1625483163249,2.20527,2300.3,2300.2,2.20527]
[1625483165302,2.20527,2300.6,2300.2,2.20527]
[1625483165403,2.3265,2301.2,2300.2,2.20527]
[1625483165502,0.8649,2301.5,2300.2,2.20527]
[1625483165612,14.9522,2301.9,2300.2,2.20527]
[1625483166705,14.9522,2301.9,2300.2,4.93327]
[1625483167157,3.1022,2301.7,2300.2,4.93327]
[1625483167264,2.20527,2301.2,2301.0,2.20527]
[1625483167356,2.20527,2301.2,2301.0,5.17287]
[1625483167605,4.759,2302.3,2301.0,5.17287]
[1625483167906,4.759,2302.3,2301.1,47.2065]
[1625483168007,4.759,2302.3,2301.0,2.9676]
[1625483168858,4.759,2302.3,2300.3,1.0]
[1625483168957,7.7476,2302.3,2300.2,2.728]
[1625483169258,2.20527,2301.1,2301.0,2.20527]
[1625483169557,7.7476,2302.3,2301.0,2.20527]
[1625483171265,2.20527,2301.5,2301.4,2.20527]
[1625483180854,2.20527,2301.9,2301.4,2.20527]
[1625483180960,2.20527,2301.9,2301.4,4.85427]
[1625483181155,4.759,2302.8,2301.4,4.85427]
[1625483181356,2.20527,2302.4,2302.2,2.20527]
[1625483183360,2.20527,2302.3,2302.2,2.20527]
[1625483187818,2.20527,2302.4,2301.8,50.702]
[1625483187819,69.3846,2303.3,2301.8,50.702]
[1625483187919,69.3846,2303.3,2301.8,53.6743]
[1625483188571,69.3846,2303.3,2301.9,15.741705]
[1625483189325,64.6256,2303.3,2301.9,15.741705]
[1625483189434,2.20527,2302.5,2302.4,2.20527]
[1625483189521,3.20527,2302.5,2302.4,2.20527]
[1625483194646,3.20527,2302.5,2302.4,4.84087]
[1625483206725,1.0,2302.5,2302.4,4.84087]
[1625483206825,1.0,2302.7,2302.4,4.84087]
[1625483206923,1.0,2302.7,2302.4,21.574606]
[1625483207278,1.0,2302.7,2302.4,20.702706]
[1625483207576,1.0,2302.7,2302.6,2.20527]
[1625483207933,1.0,2302.7,2302.6,18.085337]
[1625483211053,1.0,2302.7,2302.6,11.040937]
[1625483211160,1.0,2302.7,2301.5,1.0]
[1625483211261,3.9909,2302.7,2300.9,1.24671448]
[1625483211560,2.20527,2302.0,2301.9,2.20527]
[1625483211660,4.57417,2302.0,2301.9,2.20527]
[1625483211759,57.55817,2302.0,2301.9,2.20527]
[1625483212060,55.3529,2302.0,2301.9,2.20527]
[1625483213011,2.3689,2302.0,2301.9,2.20527]
[1625483213561,4.57417,2302.0,2301.9,2.20527]
[1625483216665,4.57417,2302.0,2301.7,2.20527]
[1625483219591,4.57417,2302.0,2301.9,2.20527]
[1625483219792,4.57417,2302.0,2301.7,2.20527]
[1625483219991,5.43747,2302.0,2301.7,2.20527]
[1625483220593,4.57417,2302.0,2301.7,2.20527]
[1625483221598,2.20527,2301.8,2301.7,2.20527]
[1625483223203,2.20527,2301.8,2301.3,2.20527]
[1625483223611,2.20527,2301.4,2301.3,2.20527]
[1625483223710,4.42307,2301.4,2301.3,2.20527]
[1625483223809,4.42307,2301.4,2301.1,14.2469]
[1625483224110,4.42307,2301.4,2300.9,2.20527]
[1625483225670,4.42307,2301.4,2301.2,2.20527]
[1625483226267,4.42307,2301.4,2300.9,2.20527]
[1625483227619,2.20527,2301.0,2300.9,2.20527]
[1625483229976,2.20527,2301.4,2300.9,2.20527]
[1625483230823,0.81237,2301.4,2300.9,2.20527]
[1625483230923,1.0,2302.2,2300.9,4.53457]
[1625483231025,4.759,2302.3,2300.9,4.53457]
[1625483231226,4.759,2302.3,2301.0,15.775364]
[1625483231328,1.0,2302.7,2301.0,15.775364]
[1625483231527,1.0,2302.7,2301.2,1.25212452]
[1625483231626,1.0,2302.7,2302.5,2.20527]
[1625483231726,2.20527,2302.6,2302.5,2.20527]
[1625483231827,2.20527,2302.6,2302.3,2.20527]
[1625483233482,2.20527,2302.6,2301.3,1.0]
[1625483233580,2.20527,2302.6,2301.1,15.03733789]
[1625483233680,2.20527,2302.6,2302.3,2.20527]
[1625483233786,2.20527,2302.6,2302.1,2.20527]
[1625483235644,4.41054,2302.6,2302.4,2.20527]
[1625483237549,2.20527,2302.6,2302.4,2.20527]
[1625483237649,2.20527,2302.6,2302.5,2.20527]
[1625483238302,2.20527,2302.6,2301.7,3.0126]
[1625483238952,1.0,2302.7,2301.8,15.680938]
[1625483239353,1.0,2302.7,2301.3,2.25162109]
[1625483239354,1.0,2302.7,2301.4,15.771722]
[1625483239654,1.0,2302.7,2301.9,15.831426]
[1625483239756,2.20527,2302.4,2302.2,2.20527]
[1625483246218,2.20527,2302.6,2302.2,2.20527]
[1625483247773,2.20527,2302.6,2302.5,2.20527]
[1625483252781,2.20527,2302.6,2302.2,2.20527]
[1625483253284,2.20527,2302.6,2302.2,3.06657]
[1625483253393,2.20527,2302.6,2302.2,2.20527]
[1625483253699,2.20527,2302.6,2302.5,2.20527]
[1625483259761,3.07977,2302.6,2302.5,2.20527]
[1625483259861,3.07977,2302.6,2301.7,1.2543267]
[1625483259962,5.0,2302.5,2301.5,1.20447839]
[1625483260065,5.0,2302.5,2301.2,3.0897278]
[1625483260066,13.0,2302.5,2301.2,3.0897278]
[1625483260380,13.0,2302.5,2301.0,3.66457323]
[1625483260563,45.0621,2301.1,2301.0,2.83757323]
[1625483260662,48.2666,2301.1,2301.0,2.83757323]
[1625483260764,48.2666,2301.1,2300.2,3.26965686]
[1625483260864,53.2666,2301.1,2300.2,3.26965686]
[1625483261164,48.2666,2301.1,2300.2,3.26965686]
[1625483261367,48.2666,2301.1,2298.5,5.04195547]
[1625483261466,6.0,2301.0,2298.5,5.04195547]
[1625483261767,6.0,2301.0,2298.9,14.8679]
[1625483262068,50.3812,2299.6,2298.9,14.8679]
[1625483262619,50.3812,2299.6,2298.7,2.20527]
[1625483262919,3.2077,2299.6,2298.7,2.20527]
[1625483263777,4.41054,2298.8,2298.7,2.20527]
[1625483263870,6.94634,2298.8,2298.7,2.20527]
[1625483269188,2.5358,2298.8,2297.9,54.0282]
[1625483269388,44.7434,2299.1,2297.9,54.0282]
[1625483269839,2.20527,2298.8,2298.7,2.20527]
[1625483271846,4.41054,2298.8,2298.7,2.20527]
[1625483279920,5.41054,2298.8,2298.7,2.20527]
[1625483287936,3.20527,2298.8,2298.7,2.20527]
[1625483290093,1.0,2298.8,2298.7,2.20527]
[1625483295948,3.20527,2298.8,2298.7,2.20527]
[1625483296656,1.0,2298.8,2298.7,2.20527]
[1625483302029,3.20527,2298.8,2298.7,2.20527]
[1625483310349,3.20527,2298.8,2297.4,1.8582]
[1625483310449,3.20527,2298.8,2297.4,0.8582]
[1625483311003,3.20527,2298.8,2297.5,15.714705]
[1625483311104,3.20527,2298.8,2297.5,60.164505]
[1625483312012,3.20527,2298.8,2298.2,2.20527]
[1625483314030,2.20527,2298.3,2298.2,2.20527]
[1625483314232,5.33007,2298.3,2298.2,2.20527]
[1625483324105,3.1248,2298.3,2297.3,20.6179]
[1625483324205,3.1248,2298.3,2297.3,18.75]
[1625483324307,39.9218,2298.4,2297.3,18.75]
[1625483324506,39.9218,2298.4,2297.4,0.15538856]
[1625483324607,39.9218,2298.4,2298.3,2.20527]
[1625483331480,39.9218,2298.4,2297.4,1.8688]
[1625483331581,43.3523,2298.4,2297.4,0.8688]
[1625483331680,43.3523,2298.4,2297.5,0.15535519]
[1625483332180,43.3523,2298.4,2297.6,15.720772]
[1625483332431,43.3523,2298.4,2297.7,0.15535032]
[1625483332635,43.3523,2298.4,2298.3,2.20527]
[1625483334634,45.55757,2298.4,2298.3,2.20527]
[1625483342452,43.3523,2298.4,2297.6,1.0]
[1625483342552,43.3523,2298.4,2297.1,3.27130643]
[1625483342653,43.3523,2298.4,2297.4,0.1552691]
[1625483342902,2.20527,2298.3,2298.2,2.20527]
[1625483344026,4.20527,2298.3,2298.2,2.20527]
[1625483344929,6.41054,2298.3,2298.2,2.20527]
[1625483345840,6.41054,2298.3,2298.2,17.931329]
[1625483346137,2.0,2298.3,2298.2,17.931329]
[1625483347243,2.0,2298.3,2298.2,2.20527]
[1625483347543,2.0,2298.3,2298.2,2.33422393]
[1625483347846,2.0,2298.3,2298.2,2.20527]
[1625483348847,2.0,2298.3,2298.2,6.25526333]
[1625483349146,2.0,2298.3,2298.2,2.20527]
[1625483349347,2.0,2298.3,2298.2,2.97905288]
[1625483349698,2.0,2298.3,2298.2,2.33423381]
[1625483349796,5.3042,2298.3,2298.2,2.33423381]
[1625483350048,5.3042,2298.3,2298.2,5.62750373]
[1625483351098,5.3042,2298.3,2298.2,3.42223373]
[1625483352401,7.50947,2298.3,2298.2,5.62750373]
[1625483353055,7.50947,2298.3,2298.2,5.49853992]
[1625483353155,7.50947,2298.3,2298.2,2.20527]
[1625483358268,5.3042,2298.3,2297.8,3.29902395]
[1625483358783,7.50947,2298.3,2298.2,2.20527]
[1625483359082,7.50947,2298.3,2297.9,0.12897837]
[1625483359182,7.50947,2298.3,2297.8,3.29902395]
[1625483359282,7.50947,2298.3,2296.9,8.89713845]
[1625483359283,7.50947,2298.3,2297.7,3.29904526]
[1625483359587,7.50947,2298.3,2297.8,3.4275268]
[1625483359885,7.50947,2298.3,2297.8,3.29854604]
[1625483359984,7.50947,2298.3,2297.7,3.29847757]
[1625483360288,7.50947,2298.3,2297.8,0.12898136]
[1625483360789,2.20527,2297.9,2297.8,0.12898136]
[1625483361441,2.20527,2297.9,2297.6,3.29956419]
[1625483361744,2.20527,2297.9,2297.7,0.12897885]
[1625483362294,2.20527,2297.9,2297.8,15.773076]
[1625483362794,2.20527,2297.9,2297.8,17.978346]
[1625483362895,2.20527,2297.9,2297.8,22.80796969]
[1625483364200,1.17363685,2297.9,2297.8,18.75214693]
[1625483364401,1.17363685,2297.9,2297.8,18.10731282]
[1625483364502,1.17363685,2297.9,2297.8,2.33423682]
[1625483365456,49.02033685,2297.9,2297.8,2.33423682]
[1625483365905,49.02033685,2297.9,2297.8,2.20527]
[1625483367358,49.02033685,2297.9,2297.5,3.29835486]
[1625483367456,51.98843685,2297.9,2297.5,3.29835486]
[1625483367557,51.98843685,2297.9,2297.4,3.29896341]
[1625483368455,51.98843685,2297.9,2297.5,0.128991]
[1625483368856,2.20527,2297.6,2297.5,0.128991]
[1625483370659,2.20527,2297.6,2297.4,3.29896341]
[1625483370859,2.20527,2297.6,2297.3,2.20527]
[1625483370860,2.20527,2297.6,2297.3,5.50297355]
[1625483371461,2.20527,2297.6,2297.4,0.12899373]
[1625483372215,2.20527,2297.6,2297.3,5.50297355]
[1625483372416,2.20527,2297.6,2297.3,2.20527]
[1625483372673,2.20527,2297.6,2297.2,3.29757452]
[1625483372875,4.55297,2297.3,2297.2,3.29757452]
[1625483373284,4.55297,2297.3,2297.2,3.42657077]
[1625483374501,4.55297,2297.3,2297.2,0.12899625]
[1625483374752,4.55297,2297.3,2297.1,5.5025437]
[1625483374852,2.07628304,2297.2,2297.1,5.5025437]
[1625483374952,2.07628304,2297.2,2297.1,2.20527]
[1625483375954,2.07628304,2297.2,2297.1,2.33427713]
[1625483376608,2.07628304,2297.2,2296.9,5.50394559]
[1625483376908,2.20527,2297.0,2296.9,5.50394559]
[1625483377609,2.20527,2297.0,2296.9,2.20527]
[1625483377758,2.20527,2297.0,2296.9,2.33428294]
[1625483378109,2.20527,2297.0,2296.9,2.20527]
[1625483379611,2.20527,2297.0,2296.9,2.33428036]
[1625483379962,2.20527,2297.0,2296.9,2.20527]
[1625483380615,2.20527,2297.0,2296.9,4.74163129]
[1625483386444,2.20527,2297.0,2296.9,2.20527]
[1625483386847,2.20527,2297.0,2296.9,4.74137234]
[1625483387698,2.20527,2297.0,2296.9,2.20527]
[1625483388449,2.20527,2297.0,2296.9,4.74300006]
[1625483389252,2.20527,2297.0,2296.9,2.20527]
[1625483389951,2.20527,2297.0,2296.9,4.74271924]
[1625483390701,3.20527,2297.0,2296.9,4.74271924]
[1625483393304,3.20527,2297.0,2296.9,2.20527]
[1625483394103,3.20527,2297.0,2296.9,4.74300012]
[1625483394609,3.20527,2297.0,2296.9,2.20527]
[1625483400968,1.0,2297.0,2296.9,2.20527]
[1625483401369,1.0,2297.0,2296.9,4.74560605]
[1625483402270,1.0,2297.0,2296.9,2.20527]
[1625483412621,1.0,2297.0,2296.9,4.61207]
[1625483412877,1.0,2297.0,2296.9,7.15598228]
[1625483412974,1.0,2297.0,2296.9,23.07559028]
[1625483415885,42.0403,2297.0,2296.9,23.07559028]
[1625483416288,42.0403,2297.0,2296.9,23.20460897]
[1625483416485,1.0,2297.0,2296.9,23.20460897]
[1625483416585,0.0001,2297.0,2296.9,23.20460897]
[1625483417340,44.5507,2297.0,2296.9,23.20460897]
[1625483417541,44.5507,2297.0,2296.9,23.96754516]
[1625483417792,43.6585,2297.0,2296.9,23.96754516]
[1625483417992,43.6585,2297.0,2296.9,20.81586656]
[1625483418093,42.62666997,2297.0,2296.9,20.81586656]
[1625483418192,2.0,2297.1,2296.9,25.52588409]
[1625483418491,2.0,2297.1,2297.0,0.1551854]
[1625483418593,2.0,2297.1,2297.0,0.28418763]
[1625483418943,2.0,2297.1,2297.0,16.07809863]
[1625483419144,2.0,2297.1,2297.0,20.14328499]
[1625483419556,2.0,2297.1,2297.0,16.07809863]
[1625483420451,2.0,2297.1,2297.0,15.92291323]
[1625483420699,2.0,2297.1,2297.0,16.07814164]
[1625483420900,2.0,2297.1,2297.0,15.92291323]
[1625483421450,2.0,2297.1,2297.0,16.07814177]
[1625483421649,2.0,2297.1,2297.0,15.92291323]
[1625483421849,2.0,2297.1,2297.0,16.07814268]
[1625483421949,2.0,2297.1,2297.0,16.72313801]
[1625483422049,2.0,2297.1,2297.0,16.56790856]
[1625483422250,2.0,2297.1,2297.0,15.92291323]
[1625483422351,2.0,2297.1,2297.0,3.43284881]
[1625483424204,2.0,2297.1,2297.0,0.12900223]
[1625483424305,5.0876,2297.1,2297.0,0.12900223]
[1625483425408,5.0876,2297.1,2297.0,3.43503447]
[1625483425755,5.0876,2297.1,2297.0,0.12900223]
[1625483426655,5.0876,2297.1,2297.0,3.43567491]
[1625483429014,5.0876,2297.1,2297.0,0.12900223]
[1625483429417,5.0876,2297.1,2296.9,5.51279901]
[1625483430014,5.0876,2297.1,2297.0,0.12902082]
[1625483430722,5.0876,2297.1,2297.0,3.43681534]
[1625483431371,5.0876,2297.1,2297.0,7.84735534]
[1625483432022,5.0876,2297.1,2297.0,5.64208534]
[1625483432228,5.0876,2297.1,2297.0,2.33429082]
[1625483432325,5.0876,2297.1,2297.0,0.12902082]
[1625483432422,5.0876,2297.1,2296.9,3.30890123]
[1625483432532,5.0876,2297.1,2296.9,2.54660815]
[1625483432922,5.0876,2297.1,2296.2,18.78221629]
[1625483432923,5.0876,2297.1,2296.8,2.54750204]
[1625483433425,2.20527,2296.9,2296.5,2.54993741]
[1625483433731,54.6045,2296.6,2296.5,2.54993741]
[1625483433829,57.253,2296.6,2296.5,2.54993741]
[1625483434735,57.253,2296.6,2296.4,2.54979786]
[1625483435393,4.41054,2296.5,2296.4,4.75506786]
[1625483437101,4.41054,2296.5,2296.4,2.54979786]
[1625483437209,4.41054,2296.5,2295.9,4.08194216]
[1625483437410,4.41054,2296.0,2295.9,4.08194216]
[1625483437513,4.41054,2296.0,2295.9,2.70294216]
[1625483437614,7.03344,2296.0,2295.3,8.93586114]
[1625483437717,7.03344,2296.0,2295.3,6.34301851]
[1625483437816,7.03344,2296.0,2295.5,2.55665607]
[1625483438218,7.03344,2296.0,2295.5,2.09685607]
[1625483438385,7.03344,2296.0,2295.5,1.23155607]
[1625483438490,12.03344,2296.0,2295.5,0.46155607]
[1625483438679,12.03344,2296.0,2295.5,0.05715607]
[1625483438781,7.91184,2296.0,2295.3,0.59070329]
[1625483438882,7.91184,2296.0,2294.9,2.56016964]
[1625483439073,7.03344,2296.0,2294.9,2.56016964]
[1625483439421,7.03344,2296.0,2295.9,2.20527]
[1625483439520,7.03344,2296.0,2294.9,2.56016964]
[1625483440024,7.03344,2296.0,2295.0,15.825856]
[1625483440371,7.03344,2296.0,2295.0,17.61847037]
[1625483441130,7.03344,2296.0,2295.0,15.825856]
[1625483441437,2.20527,2295.5,2295.4,2.20527]
[1625483443491,4.41054,2295.5,2295.4,2.20527]
[1625483444551,40.3934,2295.6,2295.4,2.20527]
[1625483445049,40.3934,2295.6,2294.9,1.79045094]
[1625483445255,40.3934,2295.6,2294.8,1.7909213]
[1625483445454,2.20527,2295.4,2295.3,2.20527]
[1625483447439,2.20527,2295.4,2294.7,1.79018243]
[1625483447517,4.41054,2295.4,2294.7,1.79018243]
[1625483448062,4.41054,2295.4,2294.4,2.20527]
[1625483449465,4.41054,2294.5,2294.4,2.20527]
[1625483449565,7.76124,2294.5,2294.4,2.20527]
[1625483451168,7.76124,2294.5,2294.1,2.20527]
[1625483451472,2.20527,2294.2,2294.1,2.20527]
[1625483454632,2.20527,2294.2,2294.1,0.82527]
[1625483459339,3.85527,2294.2,2294.1,0.82527]
[1625483462468,1.65,2294.2,2294.1,0.82527]
[1625483463318,1.65,2294.2,2294.1,16.52568]
[1625483465525,1.65,2294.2,2294.1,0.82527]
[1625483471192,1.65,2294.2,2294.0,36.0]
[1625483471642,3.85527,2294.2,2294.1,4.41054]
[1625483477471,1.65,2294.2,2294.1,4.41054]
[1625483478271,4.0756,2294.2,2294.1,4.41054]
[1625483479692,6.28087,2294.2,2294.1,4.41054]
[1625483483770,6.28087,2294.2,2294.1,2.20527]
[1625483490335,6.28087,2294.2,2294.0,36.0]
[1625483491792,2.20527,2294.1,2294.0,36.0]
[1625483496169,2.20527,2294.1,2294.0,21.6256]
[1625483496370,2.20527,2294.1,2294.0,15.6124]
[1625483508229,2.20527,2294.1,2294.0,14.9464]
[1625483508320,4.55587,2294.1,2294.0,14.9464]
[1625483509982,4.55587,2294.1,2293.1,1.0]
[1625483510083,4.55587,2294.1,2292.9,2.20527]
[1625483510433,3.85527,2294.2,2294.1,10.39053]
[1625483511406,8.85527,2294.2,2294.1,10.39053]
[1625483511499,8.85527,2294.2,2292.9,2.20527]
[1625483511594,12.38867,2294.2,2292.9,2.20527]
[1625483511894,4.41054,2293.0,2292.9,2.20527]
[1625483511995,7.93384,2293.0,2292.9,2.20527]
[1625483512095,57.04864,2293.0,2292.9,2.20527]
[1625483514152,57.04864,2293.0,2292.8,13.7168]
[1625483514403,57.04864,2293.0,2292.8,12.3358]
[1625483514913,57.04864,2293.0,2291.5,1.0]
[1625483515014,57.04864,2293.0,2291.4,14.706]
[1625483515216,62.04864,2293.0,2291.4,14.706]
[1625483515718,62.04864,2293.0,2291.3,1.0]
[1625483515821,62.04864,2293.0,2290.5,1.27596025]
[1625483515918,2.20527,2291.2,2291.1,2.20527]
[1625483516218,56.81517,2291.2,2291.1,2.20527]
[1625483517320,56.81517,2291.2,2290.1,15.21386786]
[1625483517523,56.81517,2291.2,2290.3,0.1557451]
[1625483517623,2.20527,2291.2,2290.3,0.1557451]
[1625483517721,2.20527,2291.2,2290.1,13.9376]
[1625483517722,2.20527,2291.2,2290.2,0.15526866]
[1625483517923,4.41054,2291.2,2291.1,2.20527]
[1625483518577,4.41054,2291.2,2290.2,16.786281]
[1625483518679,7.75754,2291.2,2290.1,13.9376]
[1625483519087,7.75754,2291.2,2290.2,0.15527717]
[1625483519537,7.75754,2291.2,2290.3,15.867959]
[1625483519940,7.75754,2291.2,2291.1,2.20527]
[1625483520744,7.75754,2291.2,2290.2,1.0]
[1625483520838,7.75754,2291.2,2290.1,15.21467667]
[1625483520941,7.75754,2291.2,2290.3,1.27825416]
[1625483521388,7.75754,2291.2,2290.2,1.2784443]
[1625483521588,7.75754,2291.2,2290.4,15.776556]
[1625483521888,5.55227,2291.2,2291.0,2.20527]
[1625483522390,5.55227,2291.2,2290.3,15.957729]
[1625483522789,5.55227,2291.2,2290.2,1.2784443]
[1625483522790,5.55227,2291.2,2290.4,1.27968824]
[1625483523190,5.55227,2291.2,2290.5,15.915655]
[1625483523891,5.55227,2291.2,2290.8,2.20527]
[1625483525915,2.20527,2290.9,2290.8,2.20527]
[1625483526318,2.20527,2290.9,2290.6,2.20527]
[1625483526416,2.20527,2290.9,2290.1,13.9376]
[1625483527024,2.20527,2290.9,2290.0,0.05]
[1625483527839,7.20527,2290.9,2290.0,0.05]
[1625483527926,4.41054,2290.1,2290.0,0.05]
[1625483528030,6.94894,2290.1,2290.0,0.05]
[1625483529126,6.93894,2290.1,2290.0,0.05]
[1625483532240,6.93894,2290.1,2289.3,2.20527]
[1625483532342,6.93894,2290.1,2288.4,1.0]
[1625483532843,6.93894,2290.1,2288.2,1.78674291]
[1625483533148,6.93894,2290.1,2287.8,14.2984]
[1625483533247,12.93894,2290.1,2287.8,14.2984]
[1625483533361,12.93894,2290.1,2287.9,1.0]
[1625483533446,8.0,2290.0,2287.8,13.7714]
[1625483533551,6.0,2289.9,2287.8,13.7714]
[1625483533746,1.0,2289.9,2287.8,13.7714]
[1625483533947,2.20527,2288.0,2287.9,2.20527]
[1625483534450,6.61367,2288.0,2287.7,2.20527]
[1625483534552,5.61367,2288.0,2287.7,2.20527]
[1625483534648,53.6936,2287.8,2287.7,2.20527]
[1625483536004,55.89887,2287.8,2287.7,2.20527]
[1625483536856,56.89887,2287.8,2287.3,2.20527]
[1625483537054,55.89887,2287.8,2287.3,2.20527]
[1625483537254,2.20527,2287.8,2287.3,2.20527]
[1625483537860,2.20527,2287.8,2286.2,18.776]
[1625483537955,2.20527,2287.2,2287.1,2.20527]
[1625483538256,10.0,2514.0,2287.1,2.20527]
[1625483538357,3.1312,2291.1,2287.1,5.22847]
[1625483538456,2.51126351,2291.6,2287.1,6.10357]
[1625483538555,2.51126351,2291.6,2287.1,10.86257]
[1625483538655,2.51126351,2291.6,2287.3,0.05]
[1625483538959,44.76409737,2291.7,2287.3,0.05]
[1625483539056,44.76409737,2291.7,2287.4,15.721445]
[1625483539157,1.0,2291.6,2287.4,15.721445]
[1625483539260,3.8968,2291.6,2287.5,1.0]
[1625483539458,13.0,2291.5,2287.5,1.0]
[1625483539557,1.0,2291.4,2287.5,1.0]
[1625483539657,1.0,2291.4,2287.6,15.738171]
[1625483539761,1.0,2291.4,2287.6,18.069171]
[1625483539962,2.20527,2288.9,2288.8,2.20527]
[1625483540565,2.20527,2288.9,2288.6,2.20527]
[1625483543988,2.20527,2289.2,2288.8,2.20527]
[1625483544190,1.25287481,2292.8,2288.8,2.20527]
[1625483544290,1.0,2291.5,2288.8,3.20527]
[1625483544387,14.1634,2292.7,2288.9,15.939474]
[1625483544489,14.1634,2292.7,2289.0,1.0]
[1625483544589,0.21557046,2292.3,2289.0,3.7701]
[1625483544788,0.21557046,2292.3,2289.1,15.811483]
[1625483544889,0.21557046,2292.3,2289.2,1.0]
[1625483545095,0.8612,2292.4,2289.2,1.0]
[1625483545191,0.8612,2292.4,2289.3,15.785262]
[1625483545290,0.8612,2292.4,2289.4,1.0]
[1625483545493,8.8612,2292.4,2289.4,1.0]
[1625483545592,5.0,2292.3,2289.5,15.755831]
[1625483545692,5.0,2292.3,2289.5,18.625531]
[1625483545792,13.0,2292.3,2289.5,19.625531]
[1625483545993,2.20527,2290.0,2289.9,2.20527]
[1625483546345,1.0,2291.5,2289.9,2.20527]
[1625483546463,5.8612,2292.4,2289.9,2.20527]
[1625483546548,5.0,2292.2,2289.9,2.20527]
[1625483547493,8.0,2292.1,2289.9,2.20527]
[1625483547594,5.0,2292.0,2289.9,2.20527]
[1625483547694,8.1363,2292.0,2289.9,2.20527]
[1625483547996,2.20527,2290.4,2290.3,2.20527]
[1625483549256,2.20527,2290.4,2289.3,13.7192]
[1625483550055,2.20527,2289.7,2289.6,2.20527]
[1625483551009,2.20527,2289.7,2289.6,18.168936]
[1625483551209,1.0,2291.2,2289.6,18.168936]
[1625483551308,8.0,2292.5,2289.6,20.532936]
[1625483551509,5.0,2291.9,2289.6,20.532936]
[1625483552058,2.20527,2290.2,2290.1,2.20527]
[1625483552259,3.70527,2290.2,2290.1,2.20527]
[1625483552559,6.01177,2290.2,2289.6,2.20527]
[1625483553462,6.01177,2290.2,2289.7,19.145473]
[1625483553560,3.70527,2290.2,2289.7,19.145473]
[1625483554022,3.70527,2290.2,2290.0,2.20527]
[1625483556087,5.91054,2290.2,2290.0,2.20527]
[1625483559709,1.5,2290.2,2290.0,2.20527]
[1625483560108,3.70527,2290.2,2290.1,2.20527]
[1625483560560,1.5,2290.2,2289.5,3.1258]
[1625483561260,1.5,2290.2,2289.6,15.752423]
[1625483562061,1.5,2290.2,2290.1,2.20527]